Workbook

Sheet 09.12.2016
A1: Название | B1: Цена (розн.) | C1: Количество товара на начало смены | D1: Возврат товара на склад | E1: Продано через КАССУ | F1: Передано "Аксиомус" | G1: Передано "DPD" | H1: Всего продано (шт.) | I1: Количество товара на конец смены | J1: В кассе наличных (руб.) | K1: Выбито чеков за товар на сумму | L1: Выручка (общ.)
A3: Зеркало Beurer FCE79 косметическое | B3: 3800 | C3: 100 | D3: 2 | E3: 3 | F3: 3 | G3: 2 | H3: =E3+F3+G3 -> 8 | I3: =C3-H3+D3 -> 94 | J3: =B3*E3 -> 11400 | K3: =(E3*B3)+(F3*B3) -> 22800 | L3: =H3*B3 -> 30400
A4: Зеркало Beurer BS05 косметическое | B4: 570 | H4: 0 | I4: 84 | J4: 0 | K4: 0 | L4: 0
A5: Маникюрный набор МР05 | B5: 890 | H5: 0 | I5: 56 | J5: 0 | K5: 0 | L5: 0
A6: Маникюрно-педикюрный набор Beurer MPE60 (9 насадок) | B6: 3800 | H6: 0 | I6: 3 | J6: 0 | K6: 0 | L6: 0
A7: Маникюрно-педикюрный набор Beurer MPE100 (10 насадок) | B7: 9500 | H7: 0 | I7: 56 | J7: 0 | K7: 0 | L7: 0
A8: Прибор для удаления мозолей Beurer MPE50 | B8: 2900 | H8: 0 | I8: 15 | J8: 0 | K8: 0 | L8: 0
A9: Эпилятор HLE60 | B9: 3000 | H9: 0 | J9: 0 | K9: 0 | L9: 0
A10: Прибор для сушки ногтей Beurer MPE58 | B10: 4100 | H10: 0 | J10: 0 | K10: 0 | L10: 0
A11: Массажная щетка для лица Beurer FCE60 | B11: 2350 | H11: 0 | J11: 0 | K11: 0 | L11: 0
A12: Фен для волос Beurer HDE30 | B12: 1850 | H12: 0 | J12: 0 | K12: 0 | L12: 0
A13: Мультистайлер для волос BEURER HTE50 | B13: 2000 | H13: 0 | J13: 0 | K13: 0 | L13: 0
A14: Парафиновая ванночка Beurer MPE70 | B14: 3100 | H14: 0 | J14: 0 | K14: 0 | L14: 0
A15: Электробритва женская BEURER HLE30 | B15: 2250 | H15: 0 | J15: 0 | K15: 0 | L15: 0
A16: Прибор для удаления волос воском BEURER HLE40 | B16: 2565 | H16: 0 | J16: 0 | K16: 0 | L16: 0
A17: Сетевой адаптер к тонометрам (БПС) | B17: 550 | H17: =E17+F17+G17 -> 0 | J17: =B17*E17 -> 0 | K17: =(E17*B17)+(F17*B17) -> 0 | L17: =H17*B17 -> 0
A18: Расходные и перевязочные материалы
A19: Мочеприемник носимый ножной Люкс 750 мл, длина трубки 28 см, Apexmed | B19: 225 | H19: =E19+F19+G19 -> 0 | J19: =B19*E19 -> 0 | K19: =(E19*B19)+(F19*B19) -> 0 | L19: =H19*B19 -> 0
A20: Мочеприемник носимый ножной Люкс 750 мл, длина трубки 50 см, Apexmed | B20: 155 | H20: 0 | J20: 0 | K20: 0 | L20: 0
A21: Мочеприемник прикроватный 1000 мл, Apexmed | B21: 41 | H21: 0 | J21: 0 | K21: 0 | L21: 0
A22: Мочеприемник прикроватный 2000 мл, Apexmed | B22: 44 | H22: 0 | J22: 0 | K22: 0 | L22: 0
A23: Мочеприемник прикроватный Люкс 2000 мл, Apexmed | B23: 192 | H23: 0 | J23: 0 | K23: 0 | L23: 0
A24: Катетер для самокатетеризации мужской лубрицированный Coloplast EasiCath 12 разм | B24: 80 | H24: 0 | J24: 0 | K24: 0 | L24: 0
A28: ВСЕГО: | E28: =SUM(E3:E27) -> 3 | F28: =SUM(F3:F27) -> 3 | G28: =SUM(G3:G27) -> 2 | H28: =SUM(H3:H27) -> 8 | J28: =SUM(J3:J27)+E38 -> 11400 | K28: =SUM(K3:K27) -> 22800 | L28: =SUM(L3:L27)+L38 -> 31050
B29: Цена (розн.) | E29: Продано через КАССУ | F29: Передано "Аксиомус" | G29: Передано "DPD" | H29: Всего продано (шт.) | J29: В кассе наличных (руб.) | K29: Выбито чеков за товар на сумму | L29: Выручка (общ.)
A31: Доставка | E31: Экспресс доставка | H31: доставка "Аксиомус"
A32: Доставка | B32: 100 | L32: =B32*(H32+E32) -> 0
A33: Доставка | B33: 300 | H33: 1 | L33: 300
A34: Доставка | B34: 350 | H34: 1 | L34: 350
A35: Доставка | B35: 400 | L35: 0
A36: Доставка | B36: 550 | L36: 0
A37: Доставка | B37: 800 | L37: 0
A38: ВСЕГО: | E38: =(E32*B32)+(E33*B33)+(E34*B34)+(E35*B35)+(E36*B36)+(E37*B37) -> 0 | H38: =(H32*B32)+(H33*B33)+(H34*B34)+(H35*B35)+(H36*B36)+(H37*B37) -> 650 | L38: =SUM(L32:L37) -> 650
J40: Z-ОТЧЕТ | L40: =K28+L38 -> 23450

Sheet 10.12.2016
A1: Название | B1: Цена (розн.) | C1: Количество товара на начало смены | D1: Возврат товара на склад | E1: Продано через КАССУ | F1: Передано "Аксиомус" | G1: Передано "DPD" | H1: Всего продано (шт.) | I1: Количество товара на конец смены | J1: В кассе наличных (руб.) | K1: Выбито чеков за товар на сумму | L1: Выручка (общ.)
A3: Зеркало Beurer FCE79 косметическое | B3: 3800 | C3: ='09.12.2016'!I3 -> 94 | D3: 1 | E3: 1 | F3: 1 | G3: 1 | H3: =E3+F3+G3 -> 3 | I3: =C3-H3+D3 -> 92 | J3: =B3*E3 -> 3800 | K3: =(E3*B3)+(F3*B3) -> 7600 | L3: =H3*B3 -> 11400
A4: Зеркало Beurer BS05 косметическое | B4: 570 | C4: ='09.12.2016'!I4 -> 84 | G4: 1 | H4: 1 | I4: =C4-H4+D4 -> 83 | J4: 0 | K4: 0 | L4: 570
A5: Маникюрный набор МР05 | B5: 890 | C5: ='09.12.2016'!I5 -> 56 | F5: 1 | H5: 1 | I5: 55 | J5: 0 | K5: 890 | L5: 890
A6: Маникюрно-педикюрный набор Beurer MPE60 (9 насадок) | B6: 3800 | C6: ='09.12.2016'!I6 -> 3 | H6: 0 | I6: 3 | J6: 0 | K6: 0 | L6: 0
A7: Маникюрно-педикюрный набор Beurer MPE100 (10 насадок) | B7: 9500 | C7: ='09.12.2016'!I7 -> 56 | H7: 0 | I7: 56 | J7: 0 | K7: 0 | L7: 0
A8: Прибор для удаления мозолей Beurer MPE50 | B8: 2900 | C8: ='09.12.2016'!I8 -> 15 | H8: 0 | I8: 15 | J8: 0 | K8: 0 | L8: 0
A9: Эпилятор HLE60 | B9: 3000 | C9: ='09.12.2016'!I9 -> 0 | H9: 0 | J9: 0 | K9: 0 | L9: 0
A10: Прибор для сушки ногтей Beurer MPE58 | B10: 4100 | C10: ='09.12.2016'!I10 -> 0 | H10: 0 | J10: 0 | K10: 0 | L10: 0
A11: Массажная щетка для лица Beurer FCE60 | B11: 2350 | H11: 0 | J11: 0 | K11: 0 | L11: 0
A12: Фен для волос Beurer HDE30 | B12: 1850 | H12: 0 | J12: 0 | K12: 0 | L12: 0
A13: Мультистайлер для волос BEURER HTE50 | B13: 2000 | H13: 0 | J13: 0 | K13: 0 | L13: 0
A14: Парафиновая ванночка Beurer MPE70 | B14: 3100 | H14: 0 | J14: 0 | K14: 0 | L14: 0
A15: Электробритва женская BEURER HLE30 | B15: 2250 | H15: 0 | J15: 0 | K15: 0 | L15: 0
A16: Прибор для удаления волос воском BEURER HLE40 | B16: 2565 | H16: 0 | J16: 0 | K16: 0 | L16: 0
A17: Расходные и перевязочные материалы
A18: Мочеприемник носимый ножной Люкс 750 мл, длина трубки 28 см, Apexmed | B18: 225 | H18: =E18+F18+G18 -> 0 | J18: =B18*E18 -> 0 | K18: =(E18*B18)+(F18*B18) -> 0 | L18: =H18*B18 -> 0
A19: Мочеприемник носимый ножной Люкс 750 мл, длина трубки 50 см, Apexmed | B19: 155 | H19: 0 | J19: 0 | K19: 0 | L19: 0
A20: Мочеприемник прикроватный 1000 мл, Apexmed | B20: 41 | H20: 0 | J20: 0 | K20: 0 | L20: 0
A21: Мочеприемник прикроватный 2000 мл, Apexmed | B21: 44 | H21: 0 | J21: 0 | K21: 0 | L21: 0
A22: Мочеприемник прикроватный Люкс 2000 мл, Apexmed | B22: 192 | H22: 0 | J22: 0 | K22: 0 | L22: 0
A23: Катетер для самокатетеризации мужской лубрицированный Coloplast EasiCath 12 разм | B23: 80 | H23: 0 | J23: 0 | K23: 0 | L23: 0
A27: ВСЕГО: | E27: =SUM(E3:E26) -> 1 | F27: =SUM(F3:F26) -> 2 | G27: =SUM(G3:G26) -> 2 | H27: =SUM(H3:H26) -> 5 | J27: =SUM(J3:J26)+E37 -> 3800 | K27: =SUM(K3:K26) -> 8490 | L27: =SUM(L3:L26)+L37 -> 13510
B28: Цена (розн.) | E28: Продано через КАССУ | F28: Передано "Аксиомус" | G28: Передано "DPD" | H28: Всего продано (шт.) | J28: В кассе наличных (руб.) | K28: Выбито чеков за товар на сумму | L28: Выручка (общ.)
A30: Доставка | E30: Экспресс доставка | H30: доставка "Аксиомус"
A31: Доставка | B31: 100 | L31: =B31*(H31+E31) -> 0
A32: Доставка | B32: 300 | H32: 1 | L32: 300
A33: Доставка | B33: 350 | H33: 1 | L33: 350
A34: Доставка | B34: 400 | L34: 0
A35: Доставка | B35: 550 | L35: 0
A36: Доставка | B36: 800 | L36: 0
A37: ВСЕГО: | E37: =(E31*B31)+(E32*B32)+(E33*B33)+(E34*B34)+(E35*B35)+(E36*B36) -> 0 | H37: =(H31*B31)+(H32*B32)+(H33*B33)+(H34*B34)+(H35*B35)+(H36*B36) -> 650 | L37: =SUM(L31:L36) -> 650
J39: Z-ОТЧЕТ | L39: =K27+L37 -> 9140

Sheet 18.12.2016
A1: Название | B1: Цена (розн.) | C1: Количество товара на начало смены | D1: Возврат товара на склад | E1: Продано через КАССУ | F1: Передано "Аксиомус" | G1: Передано "DPD" | H1: Всего продано (шт.) | I1: Количество товара на конец смены | J1: В кассе наличных (руб.) | K1: Выбито чеков за товар на сумму | L1: Выручка (общ.)
A3: Зеркало Beurer FCE79 косметическое | B3: 3800 | C3: ='10.12.2016'!I3 -> 92 | D3: 1 | E3: 1 | F3: 1 | G3: 1 | H3: =E3+F3+G3 -> 3 | I3: =C3-H3+D3 -> 90 | J3: =B3*E3 -> 3800 | K3: =(E3*B3)+(F3*B3) -> 7600 | L3: =H3*B3 -> 11400
A4: Зеркало Beurer BS05 косметическое | B4: 570 | C4: ='10.12.2016'!I4 -> 83 | H4: 0 | I4: =C4-H4+D4 -> 83 | J4: 0 | K4: 0 | L4: 0
A5: Маникюрный набор МР05 | B5: 890 | C5: ='10.12.2016'!I5 -> 55 | E5: 1 | G5: 1 | H5: 2 | I5: 53 | J5: 890 | K5: 890 | L5: 1780
A6: Маникюрно-педикюрный набор Beurer MPE60 (9 насадок) | B6: 3800 | C6: ='10.12.2016'!I6 -> 3 | H6: 0 | I6: 3 | J6: 0 | K6: 0 | L6: 0
A7: Маникюрно-педикюрный набор Beurer MPE100 (10 насадок) | B7: 9500 | C7: ='10.12.2016'!I7 -> 56 | H7: 0 | I7: 56 | J7: 0 | K7: 0 | L7: 0
A8: Прибор для удаления мозолей Beurer MPE50 | B8: 2900 | C8: ='10.12.2016'!I8 -> 15 | H8: 0 | I8: 15 | J8: 0 | K8: 0 | L8: 0
A9: Эпилятор HLE60 | B9: 3000 | C9: ='10.12.2016'!I9 -> 0 | H9: 0 | J9: 0 | K9: 0 | L9: 0
A10: Прибор для сушки ногтей Beurer MPE58 | B10: 4100 | C10: ='10.12.2016'!I10 -> 0 | H10: 0 | J10: 0 | K10: 0 | L10: 0
A11: Массажная щетка для лица Beurer FCE60 | B11: 2350 | C11: ='10.12.2016'!I11 -> 0 | H11: 0 | J11: 0 | K11: 0 | L11: 0
A12: Фен для волос Beurer HDE30 | B12: 1850 | C12: ='10.12.2016'!I12 -> 0 | H12: 0 | J12: 0 | K12: 0 | L12: 0
A13: Мультистайлер для волос BEURER HTE50 | B13: 2000 | C13: ='10.12.2016'!I13 -> 0 | H13: 0 | J13: 0 | K13: 0 | L13: 0
A14: Парафиновая ванночка Beurer MPE70 | B14: 3100 | C14: ='10.12.2016'!I14 -> 0 | H14: 0 | J14: 0 | K14: 0 | L14: 0
A15: Электробритва женская BEURER HLE30 | B15: 2250 | C15: ='10.12.2016'!I15 -> 0 | H15: 0 | J15: 0 | K15: 0 | L15: 0
A16: Прибор для удаления волос воском BEURER HLE40 | B16: 2565 | H16: 0 | J16: 0 | K16: 0 | L16: 0
A17: Расходные и перевязочные материалы
A18: Мочеприемник носимый ножной Люкс 750 мл, длина трубки 28 см, Apexmed | B18: 225 | H18: =E18+F18+G18 -> 0 | J18: =B18*E18 -> 0 | K18: =(E18*B18)+(F18*B18) -> 0 | L18: =H18*B18 -> 0
A19: Мочеприемник носимый ножной Люкс 750 мл, длина трубки 50 см, Apexmed | B19: 155 | H19: 0 | J19: 0 | K19: 0 | L19: 0
A20: Мочеприемник прикроватный 1000 мл, Apexmed | B20: 41 | H20: 0 | J20: 0 | K20: 0 | L20: 0
A21: Мочеприемник прикроватный 2000 мл, Apexmed | B21: 44 | H21: 0 | J21: 0 | K21: 0 | L21: 0
A22: Мочеприемник прикроватный Люкс 2000 мл, Apexmed | B22: 192 | H22: 0 | J22: 0 | K22: 0 | L22: 0
A23: Катетер для самокатетеризации мужской лубрицированный Coloplast EasiCath 12 разм | B23: 80 | H23: 0 | J23: 0 | K23: 0 | L23: 0
A27: ВСЕГО: | E27: =SUM(E3:E26) -> 2 | F27: =SUM(F3:F26) -> 1 | G27: =SUM(G3:G26) -> 2 | H27: =SUM(H3:H26) -> 5 | J27: =SUM(J3:J26)+E37 -> 4690 | K27: =SUM(K3:K26) -> 8490 | L27: =SUM(L3:L26)+L37 -> 13830
B28: Цена (розн.) | E28: Продано через КАССУ | F28: Передано "Аксиомус" | G28: Передано "DPD" | H28: Всего продано (шт.) | J28: В кассе наличных (руб.) | K28: Выбито чеков за товар на сумму | L28: Выручка (общ.)
A30: Доставка | E30: Экспресс доставка | H30: доставка "Аксиомус"
A31: Доставка | B31: 100 | L31: =B31*(H31+E31) -> 0
A32: Доставка | B32: 300 | H32: 1 | L32: 300
A33: Доставка | B33: 350 | H33: 1 | L33: 350
A34: Доставка | B34: 400 | L34: 0
A35: Доставка | B35: 550 | L35: 0
A36: Доставка | B36: 800 | L36: 0
A37: ВСЕГО: | E37: =(E31*B31)+(E32*B32)+(E33*B33)+(E34*B34)+(E35*B35)+(E36*B36) -> 0 | H37: =(H31*B31)+(H32*B32)+(H33*B33)+(H34*B34)+(H35*B35)+(H36*B36) -> 650 | L37: =SUM(L31:L36) -> 650
J39: Z-ОТЧЕТ | L39: =K27+L37 -> 9140

Sheet 22.12.2016
A1: Название | B1: Цена (розн.) | C1: Количество товара на начало смены | D1: Возврат товара на склад | E1: Продано через КАССУ | F1: Передано "Аксиомус" | G1: Передано "DPD" | H1: Всего продано (шт.) | I1: Количество товара на конец смены | J1: В кассе наличных (руб.) | K1: Выбито чеков за товар на сумму | L1: Выручка (общ.)
A3: Зеркало Beurer FCE79 косметическое | B3: 3800 | C3: ='18.12.2016'!I3 -> 90 | H3: =E3+F3+G3 -> 0 | I3: =C3-H3+D3 -> 90 | J3: =B3*E3 -> 0 | K3: =(E3*B3)+(F3*B3) -> 0 | L3: =H3*B3 -> 0
A4: Зеркало Beurer BS05 косметическое | B4: 570 | C4: ='18.12.2016'!I4 -> 83 | H4: 0 | I4: =C4-H4+D4 -> 83 | J4: 0 | K4: 0 | L4: 0
A5: Маникюрный набор МР05 | B5: 890 | C5: ='18.12.2016'!I5 -> 53 | H5: 0 | I5: 53 | J5: 0 | K5: 0 | L5: 0
A6: Маникюрно-педикюрный набор Beurer MPE60 (9 насадок) | B6: 3800 | C6: ='18.12.2016'!I6 -> 3 | H6: 0 | I6: 3 | J6: 0 | K6: 0 | L6: 0
A7: Маникюрно-педикюрный набор Beurer MPE100 (10 насадок) | B7: 9500 | C7: ='18.12.2016'!I7 -> 56 | H7: 0 | I7: 56 | J7: 0 | K7: 0 | L7: 0
A8: Прибор для удаления мозолей Beurer MPE50 | B8: 2900 | C8: ='18.12.2016'!I8 -> 15 | H8: 0 | I8: 15 | J8: 0 | K8: 0 | L8: 0
A9: Эпилятор HLE60 | B9: 3000 | C9: ='18.12.2016'!I9 -> 0 | H9: 0 | J9: 0 | K9: 0 | L9: 0
A10: Прибор для сушки ногтей Beurer MPE58 | B10: 4100 | C10: ='18.12.2016'!I10 -> 0 | H10: 0 | J10: 0 | K10: 0 | L10: 0
A11: Массажная щетка для лица Beurer FCE60 | B11: 2350 | C11: ='18.12.2016'!I11 -> 0 | H11: 0 | J11: 0 | K11: 0 | L11: 0
A12: Фен для волос Beurer HDE30 | B12: 1850 | C12: ='18.12.2016'!I12 -> 0 | H12: 0 | J12: 0 | K12: 0 | L12: 0
A13: Мультистайлер для волос BEURER HTE50 | B13: 2000 | C13: ='18.12.2016'!I13 -> 0 | H13: 0 | J13: 0 | K13: 0 | L13: 0
A14: Парафиновая ванночка Beurer MPE70 | B14: 3100 | C14: ='18.12.2016'!I14 -> 0 | H14: 0 | J14: 0 | K14: 0 | L14: 0
A15: Электробритва женская BEURER HLE30 | B15: 2250 | C15: ='18.12.2016'!I15 -> 0 | H15: 0 | J15: 0 | K15: 0 | L15: 0
A16: Прибор для удаления волос воском BEURER HLE40 | B16: 2565 | C16: ='18.12.2016'!I16 -> 0 | H16: 0 | J16: 0 | K16: 0 | L16: 0
A17: Расходные и перевязочные материалы
A18: Мочеприемник носимый ножной Люкс 750 мл, длина трубки 28 см, Apexmed | B18: 225 | C18: ='18.12.2016'!I18 -> 0 | H18: =E18+F18+G18 -> 0 | J18: =B18*E18 -> 0 | K18: =(E18*B18)+(F18*B18) -> 0 | L18: =H18*B18 -> 0
A19: Мочеприемник носимый ножной Люкс 750 мл, длина трубки 50 см, Apexmed | B19: 155 | C19: ='18.12.2016'!I19 -> 0 | H19: 0 | J19: 0 | K19: 0 | L19: 0
A20: Мочеприемник прикроватный 1000 мл, Apexmed | B20: 41 | C20: ='18.12.2016'!I20 -> 0 | H20: 0 | J20: 0 | K20: 0 | L20: 0
A21: Мочеприемник прикроватный 2000 мл, Apexmed | B21: 44 | C21: ='18.12.2016'!I21 -> 0 | H21: 0 | J21: 0 | K21: 0 | L21: 0
A22: Мочеприемник прикроватный Люкс 2000 мл, Apexmed | B22: 192 | C22: ='18.12.2016'!I22 -> 0 | H22: 0 | J22: 0 | K22: 0 | L22: 0
A23: Катетер для самокатетеризации мужской лубрицированный Coloplast EasiCath 12 разм | B23: 80 | C23: ='18.12.2016'!I23 -> 0 | H23: 0 | J23: 0 | K23: 0 | L23: 0
A27: ВСЕГО: | E27: =SUM(E3:E26) -> 0 | F27: =SUM(F3:F26) -> 0 | G27: =SUM(G3:G26) -> 0 | H27: =SUM(H3:H26) -> 0 | J27: =SUM(J3:J26)+E37 -> 0 | K27: =SUM(K3:K26) -> 0 | L27: =SUM(L3:L26)+L37 -> 650
B28: Цена (розн.) | E28: Продано через КАССУ | F28: Передано "Аксиомус" | G28: Передано "DPD" | H28: Всего продано (шт.) | J28: В кассе наличных (руб.) | K28: Выбито чеков за товар на сумму | L28: Выручка (общ.)
A30: Доставка | E30: Экспресс доставка | H30: доставка "Аксиомус"
A31: Доставка | B31: 100 | C31: ='18.12.2016'!I31 -> 0 | L31: =B31*(H31+E31) -> 0
A32: Доставка | B32: 300 | C32: ='18.12.2016'!I32 -> 0 | H32: 1 | L32: 300
A33: Доставка | B33: 350 | C33: ='18.12.2016'!I33 -> 0 | H33: 1 | L33: 350
A34: Доставка | B34: 400 | C34: ='18.12.2016'!I34 -> 0 | L34: 0
A35: Доставка | B35: 550 | C35: ='18.12.2016'!I35 -> 0 | L35: 0
A36: Доставка | B36: 800 | C36: ='18.12.2016'!I36 -> 0 | L36: 0
A37: ВСЕГО: | E37: =(E31*B31)+(E32*B32)+(E33*B33)+(E34*B34)+(E35*B35)+(E36*B36) -> 0 | H37: =(H31*B31)+(H32*B32)+(H33*B33)+(H34*B34)+(H35*B35)+(H36*B36) -> 650 | L37: =SUM(L31:L36) -> 650
J39: Z-ОТЧЕТ | L39: =K27+L37 -> 650
